Cogmind - Beta 16 @@@ ROGUE MODE // 2025.11.01 @ 14:43:56 Player: Mozco Result: Destroyed self with Rocket Launcher Performance ------------- Evolutions (0) 0 Regions Visited (2) 400 Robots Destroyed (25) 125 Value Destroyed (538) 538 Prototype IDs (0) 0 Alien Tech Used (0) 0 Bonus (0) 0 TOTAL SCORE: 1063 Bonus ------- None Cogmind --------- Core Integrity 0/250 Matter 268/300 Energy 24/100 System Corruption 9% Temperature Cool (0) Movement Rolling (105) Ox1 Location -10/Mines Parts ------- > --- POWER (1) -------- (None) > --- PROPULSION (2) --- Wheel Compact Wheel > --- UTILITY (2) ------ High-capacity Storage Unit Medium Armor Plating > --- WEAPON (2) ------- Rocket Launcher > --- INVENTORY (20) --- Light Treads Flexi-carbon Leg Wheel Wheel Compact Wheel Compact Wheel Targeting Computer Medium Armor Plating Peak State ------------ > --- POWER ------------ Light Ion Engine > --- PROPULSION ------- Wheel Wheel > --- UTILITY ---------- High-capacity Storage Unit Medium Armor Plating > --- WEAPON ----------- Light EM Pulse Cannon Light EM Pulse Cannon > --- INVENTORY -------- Light Treads Flexi-carbon Leg Compact Wheel Compact Wheel Targeting Computer Medium Armor Plating Medium Armor Plating Rocket Launcher [Rating: 11] Favorites ----------- Power Ion Engine Engine Ion Engine Propulsion Light Treads Treads Light Treads Wheel Wheel Utility Small Storage Unit Storage Small Storage Unit Protection Medium Armor Plating Weapon Beam Cannon Energy Gun Medium Laser Energy Cannon Beam Cannon Ballistic Gun Assault Rifle Ballistic Cannon Light Cannon Launcher Rocket Launcher Build | -11 -10 -10 ------- Run | Yrd Mat Min Slots Evolved . | . . . Power . | . . . Propulsion . | . . . Utility . | . . . Weapon . | . . . Parts Attached 29 | 6 13 10 Power 4 | 1 2 1 Engine 4 | 1 2 1 Core . | . . . Reactor . | . . . Propulsion 9 | 2 4 3 Treads 4 | . 4 . Leg . | . . . Wheel 5 | 2 . 3 Hover . | . . . Flight . | . . . Utility 7 | 1 3 3 Device . | . . . Storage 2 | 1 . 1 Processor . | . . . Hackware . | . . . Protection 5 | . 3 2 Artifact . | . . . Weapon 9 | 2 4 3 Energy Gun 2 | 1 1 . Energy Cannon 4 | . 2 2 Ballistic Gun 1 | 1 . . Ballistic Cannon 1 | . 1 . Launcher 1 | . . 1 Special Weapon . | . . . Impact Weapon . | . . . Slashing Weapon . | . . . Piercing Weapon . | . . . Special Melee Weapon . | . . . Unidentified Prototypes . | . . . Parts Lost 13 | . 5 8 Power 3 | . 1 2 Propulsion 3 | . 2 1 Utility 3 | . 1 2 Weapon 4 | . 1 3 Highest Loss Streak 4 | . 2 4 To Critical Strikes . | . . . Average Backups 7 | 2 7 8 Power . | . . . Propulsion 2 | 1 2 2 Utility 2 | . 2 3 Weapon 1 | . 1 1 Tool/Special . | . . . Unused Backups 10 | . 3 7 Power . | . . . Propulsion 7 | . 2 5 Utility 2 | . . 2 Weapon 1 | . 1 . Tool/Special . | . . . Average Slot Usage (%) 94 | . 97 84 Engine 12 | . 14 7 Treads 21 | . 24 12 Wheel 5 | . 3 15 Storage 14 | . 14 16 Protection 11 | . 11 10 Energy Gun 4 | . 6 . Energy Cannon 11 | . 9 20 Ballistic Gun 3 | . 4 . Ballistic Cannon 6 | . 7 . Peak Build Rating 11 | 6 10 11 Average Rating 8 | 4 7 9 On Entrance 5 | . 6 10 Avg Prop Armor Cover (%) . | . . . Naked Turns . | . . . Heaviest Build 58 | 13 24 58 Greatest Support 40 | 20 40 40 Greatest Overweight (x) 4 | 1 . 4 Average Overweight (x) . | . . 1 Largest Inventory Capacity 20 | 8 8 20 Average Capacity 9 | 7 8 14 Most Carried 11 | 6 8 11 Average Carried 7 | 3 7 8 Final Capacity 20 | 8 8 20 Final Carried 8 | 6 8 8 Class Distribution -------------------- 100% | Mutant Dominant Class ---------------- Mutant | -10/Materials Mutant | -10/Mines Resources | -11 -10 -10 ----------- Run | Yrd Mat Min Matter Collected 702 | 198 426 78 Remotely . | . . . Salvage Created 1105 | . 942 163 Parts 52 | . 48 4 Haulers Intercepted 2 | . 2 . Recyclers Shooed 10 | . 10 . Parts Field Recycled . | . . . Retrieved Matter . | . . . Parts Self-Destructed . | . . . Prevented . | . . . Parts Restored . | . . . Kills | -11 -10 -10 ------- Run | Yrd Mat Min Combat Hostiles Destroyed 22 | . 14 8 Guns 11 | . 11 . Cannons 9 | . 3 6 AOE 2 | . . 2 Classes Destroyed 7 | . 6 1 Hauler 2 | . 2 . Recycler 5 | . 4 1 Operator 1 | . 1 . Watcher 3 | . 3 . Swarmer 3 | . 3 . Grunt 11 | . 11 . Assembled 8 | . . 8 Best Kill Streak 4 | . 4 3 Combat Bots Only 4 | . 4 3 Max Kills in Single Turn 2 | . 1 2 Gunslinging . | . . . Exploded 1 | . . 1 Melee . | . . . Uniques/NPCs Destroyed . | . . . Combat | -11 -10 -10 -------- Run | Yrd Mat Min Hostile Shots Fired 158 | . 87 71 Missed 40 | . 17 23 Hits 118 | . 70 48 Melee 15 | . . 15 Projectile 103 | . 70 33 AOE 9 | . . 9 Critical Strikes 3 | . 1 2 Damage Taken 2002 | . 805 1197 Core 268 | . 107 161 Absorbed by Shields . | . . . Core Remaining (%) 100 | 100 . . Volleys Fired 101 | . 76 25 Largest 2 | . 2 2 Hottest 116 | . 90 116 Shots Fired 181 | . 149 32 Gun 123 | . 123 . Cannon 56 | . 26 30 Launcher 2 | . . 2 Special . | . . . Kinetic 71 | . 71 . Thermal 84 | . 78 6 Explosive 2 | . . 2 Electromagnetic 24 | . . 24 Robot Hit Streak 8 | . 8 7 Robot Miss Streak 6 | . 6 3 Penetration Max . | . . . Secondary Targets 4 | . 4 . Max Gunslinging Chain 1 | . 1 . Shots Hit Robots 110 | . 89 21 Core Hits 55 | . 41 14 Critical Kills . | . . . Critical Parts Destroyed 1 | . 1 . Critical Strikes 2 | . 2 . Burn 1 | . 1 . Destroy 1 | . 1 . Melee Attacks . | . . . Impact . | . . . Slashing . | . . . Piercing . | . . . Sneak Attacks . | . . . Combat Hostiles . | . . . Follow-up Attacks . | . . . Damage Inflicted 1737 | . 1197 540 Guns 952 | . 952 . Cannons 688 | . 245 443 Explosions 97 | . . 97 Melee . | . . . Ramming . | . . . Kinetic 619 | . 619 . Thermal 649 | . 578 71 Explosive 97 | . . 97 Electromagnetic 372 | . . 372 Impact . | . . . Slashing . | . . . Piercing . | . . . Highest Corruption 9 | . . 9 Average Corruption 4 | . . 4 Corruption Purged . | . . . Corruption Blocked . | . . . Effects 7 | . . 7 Message Errors 1 | . . 1 Matter Fused 1 | . . 1 Heat Flow Errors 2 | . . 2 Energy Discharges 1 | . . 1 Data Loss (minor) 1 | . . 1 Data Loss (major) 1 | . . 1 Overload Shots . | . . . Overflow Damage 27 | . 2 25 Projectiles 27 | . 2 25 Explosions . | . . . Melee . | . . . Knockbacks 2 | . 2 . Impact . | . . . Kinetic 2 | . 2 . Secondary . | . . . Self-Inflicted Damage 70 | . . 70 Shots 2 | . . 2 Rammed . | . . . Targets Rammed . | . . . Kicked . | . . . Crushed . | . . . Highest Temperature 338 | . 301 338 Average Temperature 77 | . 66 105 Received Heat Transfer 441 | . 381 60 Effects 2 | . 1 1 Energy Bleed 1 | . 1 . Short Circuit 1 | . . 1 Siege Activations . | . . . Martial Activations . | . . . Shielding Activations . | . . . Robots Disrupted 1 | . . 1 Combat Hostiles 1 | . . 1 Robots Corrupted . | . . . Combat Hostiles . | . . . Parts Fried . | . . . Impact Corruptions . | . . . Robots Melted . | . . . Combat Hostiles . | . . . Parts Melted 2 | . 2 . Heat Transferred 1855 | . 1707 148 Parts Sabotaged . | . . . Parts Stolen . | . . . Parts Stripped . | . . . Power Chain Reactions . | . . . Alert | -11 -10 -10 ------- Run | Yrd Mat Min Maximum Alert Level . | . . . Low Security (%) 100 | 100 100 100 Level 1 . | . . . Level 2 . | . . . Level 3 . | . . . Level 4 . | . . . Level 5 . | . . . High Security . | . . . Max Security . | . . . Peak Influence 166 | . 166 20 Initial . | . . . Average 45 | . 57 2 Influence Increases 626 | . 538 88 Destroy 0b10 Robot/C 280 | . 280 . Destroy 0b10 Robot/NC 60 | . 50 10 Destroy Leader 60 | . 60 . Successful Hack 42 | . 42 . Select Force Hacks 60 | . 60 . Disable Machine 15 | . . 15 Destroy Structure 64 | . 1 63 Lose Combat Pursuer 45 | . 45 . Influence Decreases 617 | . 537 80 Entered New Map 1 | . . 1 Time Decay 525 | . 477 48 Lost Part 63 | . 50 13 Lost Ally 28 | . 10 18 Squads Dispatched 3 | . 3 . Investigation 2 | . 2 . Extermination . | . . . Reinforcement 1 | . 1 . Assault . | . . . Garrison . | . . . Intercept . | . . . Searches Triggered . | . . . Construction Impeded . | . . . Haulers Reinforced . | . . . Active Scanning Responses . | . . . Cargo Convoy Interrupts . | . . . Stealth | -11 -10 -10 --------- Run | Yrd Mat Min Distress Signals 3 | . 2 1 Communications Jammed . | . . . Distress Signals . | . . . Times Spotted 46 | . 27 19 Peak Tracking Total 5 | . 4 5 Tactical Retreats 4 | . 2 2 Traps | -11 -10 -10 ------- Run | Yrd Mat Min Traps Triggered 1 | . 1 . Indirectly . | . . . Trap Hack Attempts . | . . . Triggered . | . . . Disarmed . | . . . Reprogrammed . | . . . Reused . | . . . Traps Extracted . | . . . Installed . | . . . Triggered . | . . . Machines | -11 -10 -10 ---------- Run | Yrd Mat Min Machines Disabled 1 | . . 1 Max in Single Turn 1 | . . 1 Machines Repaired . | . . . Machines Dismantled . | . . . Machines Sabotaged . | . . . Overloaded Fab Kills . | . . . Hacking | -11 -10 -10 --------- Run | Yrd Mat Min Machines Accessed 9 | . 9 . Terminals 7 | . 7 . Fabricators . | . . . Repair Stations . | . . . Recycling Units 2 | . 2 . Scanalyzers . | . . . Garrison Access . | . . . Total Hacks 29 | . 29 . Successful 19 | . 19 . Failed 10 | . 10 . Catastrophic . | . . . Database Lockouts . | . . . Manual 25 | . 25 . Terminals 23 | . 23 . Fabricators . | . . . Repair Stations . | . . . Recycling Units 6 | . 6 . Scanalyzers . | . . . Garrison Access . | . . . Terminal Hacks 4 | . 4 . Robot Analysis 4 | . 4 . Fabricator Hacks . | . . . Repair Station Hacks . | . . . Recycling Unit Hacks 2 | . 2 . Report Inventory 1 | . 1 . Retrieve Components 1 | . 1 . Scanalyzer . | . . . Garrison Access Hacks . | . . . Unauthorized Hacks 13 | . 13 . Terminals 9 | . 9 . Assimilate 2 | . 2 . Botnet 5 | . 5 . Operators 2 | . 2 . Fabricators . | . . . Repair Stations . | . . . Recycling Units 4 | . 4 . Recyclers 1 | . 1 . Mask 1 | . 1 . Tunnel 2 | . 2 . Scanalyzers . | . . . Garrison Access . | . . . Data Cores Recovered . | . . . Used . | . . . Hacking Detections 7 | . 7 . Full Trace Events . | . . . Feedback Events . | . . . Feedback Blocked . | . . . Robot Schematics Acquired . | . . . Robots Built . | . . . Authchips . | . . . Time . | . . . Total Robot Build Rating . | . . . Part Schematics Acquired . | . . . Parts Built . | . . . Authchips . | . . . Time . | . . . Total Part Build Rating . | . . . Part Studies Acquired . | . . . Parts Repaired . | . . . Time . | . . . Parts Recycled . | . . . Recycled Matter . | . . . Retrieved Matter . | . . . Retrieved Components 10 | . 10 . Parts Scanalyzed . | . . . Part Schematics Acquired . | . . . Parts Damaged . | . . . Bothacking | -11 -10 -10 ------------ Run | Yrd Mat Min Used RIF Installer . | . . . Robots Hacked . | . . . Non-combat . | . . . Combat . | . . . Robot Hacks Applied . | . . . Relay Couplers Released . | . . . Fabnet Peak Effective % . | . . . Robots Rewired 1 | . . 1 Allies Hacked . | . . . Hacks Repelled . | . . . Allies | -11 -10 -10 -------- Run | Yrd Mat Min Total Allies 2 | . 1 1 Largest Group 1 | . 1 1 Highest-Rated Group 34 | . 10 34 Highest-Rated Ally 34 | . 10 34 Total Orders 1 | . 1 . STAY 1 | . 1 . Ally Attacks 9 | . . 9 Total Damage 475 | . . 475 Kills 7 | . . 7 Allies Corrupted . | . . . Allies Melted . | . . . Intel | -11 -10 -10 ------- Run | Yrd Mat Min Active Infowar (turns) . | . . . Robot Analysis Total 4 | . 4 . Derelict Logs Recovered . | . . . Drone Launches . | . . . Drone Recoveries . | . . . Exploration | -11 -10 -10 ------------- Run | Yrd Mat Min Turns Passed 2054 | 52 1607 395 Spaces Moved 1123 | 47 875 201 Core 3 | 3 . . Treads 822 | . 765 57 Legs . | . . . Wheels 298 | 44 110 144 Hover . | . . . Flight . | . . . Fastest Speed 50 | 50 80 95 Average Speed 142 | 80 149 124 Slowest Speed 160 | 100 160 160 Overloaded Moves . | . . . Propulsion Burnouts . | . . . Robots Hopped . | . . . Potential Cave-ins . | . . . Cave-ins Triggered . | . . . Exploration Rate (%) 45 | 3 98 34 Regions Visited 2 Branch Regions 1 Pre-discovered Areas 2 | . 2 . Known Exits Taken . | . . . Unknown Exits Taken 2 | 1 1 . Scrap Searched 1 | . . 1 Spaces Dug . | . . . Terrain Destroyed 11 | . . 11 Melee . | . . . Projectile . | . . . AOE 11 | . . 11 Terrain Rammed . | . . . Walls Destroyed . | . . . Machines Disabled . | . . . Actions | -11 -10 -10 --------- Run | Yrd Mat Min Total 1395 | 58 1022 315 Wait 91 | . 35 56 Move 1121 | 46 874 201 Hop . | . . . Pick Up 24 | 6 11 7 Fast Attach 15 | 6 6 3 Attach 11 | . 4 7 Detach . | . . . Swap 5 | . 5 . Drop 15 | . 11 4 Fire 101 | . 76 25 Melee . | . . . Ram . | . . . Kick . | . . . Crush . | . . . Escape Stasis . | . . . Rewire 12 | . . 12 Trap . | . . . Miscellaneous . | . . . Route ------- -11/Scrapyard -10/Materials (discovered 4 exits: [*Mat x3] / [*Min]) -10/Mines History --------- Turn | Location | Event 24 | -11/Scrapyard | Discovered new exit (range 15) 53 | -11/Scrapyard | Entered Materials 110 | -10/Materials | Discovered new exit (range 8) 301 | -10/Materials | Build established: Mutant 1119 | -10/Materials | Discovered new exit (range 15) 1258 | -10/Materials | Discovered new exit (range 8) 1391 | -10/Materials | Discovered new exit (range 5) 1660 | -10/Materials | Entered Mines 1661 | -10/Mines | Assembled infested the area 1666 | -10/Mines | Assisted by a Guerilla fighting off Assembled 1775 | -10/Mines | Core integrity fell below 50% 1826 | -10/Mines | Received a Rocket Launcher from a helpful Derelict 1910 | -10/Mines | Core integrity fell below 20% 1965 | -10/Mines | Lost 4 parts (1p1n1u1w) 2055 | -10/Mines | Destroyed self with Rocket Launcher Last Messages --------------- 01981_ Lgt. EM Pulse Cannon destroyed. 01983_ as-74551 destroyed. 01997_ The unstable cave ceiling collapses. 02003_ System corrupted: Matter fused (-8). 02006_ Grenadier 1a destroyed. 02007_ as-00586 destroyed. 02012_ The unstable cave ceiling collapses. 02019_ System corrupted: Heat flow error (+200). 02022_ Destroyed Asb. F-torch. 02025_ The unstable cave ceiling collapses. 02030_ Searching scrap... 02030_ Found Welding Torch. 02030_ Found 70 Matter. 02031_ Acquired 8 matter. 02049_ Lgt. EM Pulse Cannon destroyed. 02049_ System corrupted by crushing effect (+5). 02049_ Knocked back. 02053_ as-60484 destroyed. 02054_ System corrupted: Substantial component data lost. 02055_ as-31856 destroyed. Map ----- +----------------------------------------------------+ | ????????????## ### #????????# #??# # | | ????????????# #????????##### #### # | | ????????????# #????????????# # | | ????????????# ##????????????###### # | | ????????????# ##??????????#######?# # | | ????????????## ##??####???## ### # | | ?????????????#### #### ##?## %! # | | ????????????????## % ###### # #### # | | ?????????????????## # ## """ # | | ??????????????????## ####### # ## """%# | | ???????????????????# ###### ## ""%%# | | ???????????????????## ##????### # ## % ]# | | ????????????????????####?????## ## # ########## | | ??????????????????????????????# ##????????# | | ?????????????????????????????## #????????## | | ?????????????????????????????# ! ! #????????# | | ?????????????????????????????## = #???????## | | ??????????????????????????????# ##?????### | | ??????????????????????????????# # #????## | | ??????????????????????????????# ##????# | | ??????????????????????????????### *###????## | | ???????????????????????????????# ####### | | ??????????????????????????####?## | %* " | | ????????????????????????### #### ! =! =%! | | ????????????????????????# ## !### # | | ???????????????????????##@ ##### | | ???????????????????????# # #####|# | | ??????????????????????# # % # # | | ??????????????????? #######| # # | | ?????????????????# !%* # ##?????# # # # | | ?????????????????# = #####??????# # # | | ?????????????????# % ##??????????## # # # | | ????????????????# ##?????????????#### # | | ???????????????# ### ?????????????????? # | | ?????????????? #??# ????????????????? #### | | ????????????? ##???#????????????????? ##??? | | ?????????????? ???????????????????????? ##???? | | ?????????????????????????????????????? ##????? | | ????????????????????????????????????? ??????? | | ?????????????????????????????????????? ??????? | | ????????????????????????????????????????=! ??????? | | ?????????????????????????????????????????%|??????? | | ?????????????????????????????????????????????????? | | ?????????????????????????????????????????????????? | | ?????????????????????????????????????????????????? | | ?????????????????????????????????????????????????? | | ?????????????????????????????????????????????????? | | ?????????????????????????????????????????????????? | | ?????????????????????????????????????????????????? | | ?????????????????????????????????????????????????? | +----------------------------------------------------+ Best States ------------- Heat Dissipation 25 Energy Generation 10 Energy Capacity 250 Matter Stores 300 Matter Capacity 300 Sight Range 16 Terrain Scan Density 10 Armor Coverage 225 Evasion (%) 44 Recoil Reduction 2 Item Schematics ----------------- None Robot Schematics ------------------ None Fabricated ------------ Nothing Repaired ---------- Nothing Studied --------- None Alien Tech Used ----------------- None Achievements -------------- None Challenges ------------ None Game ------ Seed OpticalRecoilGenerator Manual? 0 Play Time 00:16:17 Cumulative 184.1 hours Start 2025.11.01 @ 14:28:06 End 2025.11.01 @ 14:43:56 Sessions 1 Manual Loads 0 Difficulty Rogue Special Mode None Game No. 194 Rogue 190 Adventurer 3 Explorer 1 Win Type - Total 1 Types 1/0/0/0/0/0/0/0/0/0 Lore% 64 Gallery% 69 Achievement% 45 Wizard Run 0 Options --------- Layout 0 ASCII 0 Keyboard 0 Movement Mouse Keybinds 0 Fullscreen 2 Font 18/SmallcapsGlow Map View 76x50 Zoom Use 0% Tactical HUD 1 Map Filters NONE Filters NONE Steam 1 RUN: db2af427-3d11-4a57-8c4a-694c1bfbeada